{"text_format":"2","workbook":"xlsx","n_sheets":1,"sheets":["Anmeldung"],"not_rendered":{"charts":0,"images":2,"macros":0,"external_links":0,"defined_names":1,"comments":0,"pivot_tables":0},"unopened":[],"bounds":{"document_bytes":16777216,"sheet_cells":100000,"run_cost":"one","rows_first":2000,"rows_last":500,"rows_between":2000,"halvings":0,"cell_chars":16384,"cell_head_chars":4096},"cells_cut":0,"cells_raw":0,"read":"whole","date_system":"1900"}

{"sheet":"Anmeldung","index":0,"n_rows":42,"n_cols":8,"rows_kept":42,"cut":false,"hidden":false,"merged":[]}
["Anmeldung 44. Schweizer Meisterschaft der Vorderladerschützen Lenzburg 2022"]
[]
[]
[]
["Name"]
["Vorname"]
["Strasse"]
["PLZ/Ort"]
["Verein"]
["E-Mail"]
["Telefon",null,null,"Mobil"]
["Datum",null,null,"Qualifikationsschütze J/N",null,null,null,"leer lassen"]
[]
[]
["Langwaffen","O / R",null,"Fr. 15.-\nje Disziplin",null,null,"Bemerkungen"]
[]
["Miquelet",null,null,null,{"$f":"IF(C17>0,C17*D17,\" \")","v":" "}]
["Maximilian",null,null,null,{"$f":"IF(C18>0,C18*D18,\" \")","v":" "}]
["Minié",null,null,null," "]
["Whitworth",null,null,null," "]
["Walkyrie",null,null,null," "]
["Tanegashima ",null,null,null," "]
["Vetterli",null,null,null," "]
["Hizadai",null,null,null," "]
["Pennsylvania",null,null,null," "]
["Lamarmora      ",null,null,null," "]
["Breechloader",null,null,null," "]
[]
["Kurzwaffen","O / R",null,"Fr. 15.-\nje Disziplin",null,null,"Bemerkungen"]
[]
["Cominazzo",null,null,null,{"$f":"IF(C31>0,C31*D31,\" \")","v":" "}]
["Kuchenreuter",null,null,null," "]
["Colt","O",null,null," "]
["Mariette","R",null,null," "]
["Malson",null,null,null," "]
["Tanzutsu",null,null,null," "]
[{"$nulls":4}," "]
[null,null,"Disziplinen",{"$f":"SUM(D17:D36)","v":0}]
[null,null,"Startgeld",13]
[null,null,"Total",{"$f":"D38+D39","v":13},"Ein Einzahlungsschein wird zusammen mit dem Rangierplan zugestellt"]
[]
["Mittagessen Samstag",null,null,"Mittagessen Sonntag"]